fUST/lending_fUST_20250622
["ID","MTS","AMOUNT","RATE_DAILY","PERIOD"]
[366952832,1750599107605,-460.0,0.00021917,3]
[366952833,1750599107616,-460.0,0.00021917,3]
[366952834,1750599107627,-388.156379,0.00021917,2]
[366952835,1750599107638,-513.24,0.00021917,3]
[366952836,1750599107651,-569.47,0.00021917,3]
[366952837,1750599107662,-814.74,0.00021917,3]
[366952838,1750599107674,-460.0,0.00021917,3]
[366952839,1750599107686,-460.0,0.00021917,3]
[366952840,1750599107697,-460.0,0.00021917,3]
[366952841,1750599107709,-451.477732,0.00021917,2]
[366952842,1750599107721,-569.47,0.00021917,3]
[366952843,1750599107732,-513.24,0.00021917,3]
[366952844,1750599107742,-814.74,0.00021917,3]
[366952845,1750599107754,-460.0,0.00021917,3]
[366952846,1750599107765,-460.0,0.00021917,3]
[366952847,1750599107776,-460.0,0.00021917,3]
[366952848,1750599107787,-569.47,0.00021917,3]
[366952849,1750599107799,-451.477732,0.00021917,2]
[366952850,1750599108022,-513.24,0.00021917,3]
[366952851,1750599108037,-460.0,0.00021917,3]
[366952852,1750599108049,-814.74,0.00021917,3]
[366952853,1750599108068,-157.82258026,0.00021917,3]
[366952854,1750599108383,-302.17741974,0.00021917,3]
[366952855,1750599108395,-460.0,0.00021917,3]
[366952856,1750599108409,-569.47,0.00021917,3]
[366952857,1750599108421,-489.56435134,0.00021917,3]
[366952858,1750599108433,-513.24,0.00021917,3]
[366952859,1750599108446,-388.156379,0.00021917,2]
[366952860,1750599108458,-814.74,0.00021917,3]
[366952861,1750599108470,-460.0,0.00021917,3]
[366952862,1750599108481,-460.0,0.00021917,3]
[366952863,1750599108493,-55.32907983,0.00021917,3]
[366952864,1750599108723,-514.14092017,0.00021917,3]
[366952865,1750599108735,-513.24,0.00021917,3]
[366952866,1750599108752,-814.74,0.00021917,3]
[366952867,1750599108765,-460.0,0.00021917,3]
[366952868,1750599108778,-388.156379,0.00021917,2]
[366952869,1750599108791,-569.47,0.00021917,3]
[366952870,1750599108802,-513.24,0.00021917,3]
[366952871,1750599108817,-791.92415156,0.00021917,3]
[366952872,1750599108833,-22.81584844,0.00021917,3]
[366952873,1750599108845,-451.477742,0.00021917,2]
[366952874,1750599108860,-460.0,0.00021917,3]
[366952875,1750599108873,-549.38365147,0.00021917,3]
[366952876,1750599108885,-569.47,0.00021917,3]
[366952877,1750599108897,-513.24,0.00021917,3]
[366952878,1750599108909,-388.156379,0.00021917,2]
[366952879,1750599108921,-814.74,0.00021917,3]
[366952880,1750599108935,-460.0,0.00021917,3]
[366952881,1750599108951,-569.47,0.00021917,3]
[366952882,1750599108965,-814.74,0.00021917,3]
[366952883,1750599108978,-513.24,0.00021917,3]
[366952884,1750599108991,-569.47,0.00021917,3]
[366952885,1750599109002,-388.156379,0.00021917,2]
[366952886,1750599109014,-460.0,0.00021917,3]
[366952887,1750599109026,-814.74,0.00021917,3]
[366952888,1750599109037,-513.24,0.00021917,3]
[366952889,1750599109048,-569.59424243,0.00021917,3]
[366952890,1750599109063,-388.156379,0.00021917,2]
[366952891,1750599109075,-513.24,0.00021917,3]
[366952892,1750599109086,-814.74,0.00021917,3]
[366952893,1750599109098,-460.0,0.00021917,3]
[366952894,1750599109110,-814.74,0.00021917,3]
[366952895,1750599109123,-460.0,0.00021917,3]
[366952896,1750599109135,-513.24,0.00021917,3]
[366952897,1750599109148,-388.156379,0.00021917,2]
[366952898,1750599109159,-814.74,0.00021917,3]
[366952899,1750599109173,-460.0,0.00021917,3]
[366952900,1750599109185,-513.24,0.00021917,3]
[366952901,1750599109197,-814.74,0.00021917,3]
[366952902,1750599109208,-460.0,0.00021917,3]
[366952903,1750599109219,-513.24,0.00021917,3]
[366952904,1750599109230,-814.74,0.00021917,3]
[366952905,1750599109242,-460.0,0.00021917,3]
[366952906,1750599109256,-513.45010711,0.00021917,3]
[366952907,1750599109267,-814.74,0.00021917,3]
[366952908,1750599109282,-460.0,0.00021917,3]
[366952909,1750599109295,-814.74,0.00021917,3]
[366952910,1750599109311,-460.0,0.00021917,3]
[366952911,1750599109323,-460.0,0.00021917,3]
[366952912,1750599109334,-460.0,0.00021917,3]
[366952913,1750599109345,-814.74,0.00021917,3]
[366952914,1750599109356,-460.0,0.00021917,3]
[366952915,1750599109367,-460.0,0.00021917,3]
[366952916,1750599109383,-562.71659039,0.00021917,3]
[366952917,1750599109395,-814.74,0.00021917,3]
[366952918,1750599109408,-421.36236119,0.00021917,3]
[366952919,1750599109420,-814.74,0.00021917,3]
[366952920,1750599109432,-366.05690992,0.00021917,3]
[366952921,1750599109444,-814.74,0.00021917,3]
[366952922,1750599109457,-814.74,0.00021917,3]
[366952923,1750599109469,-814.78558272,0.00021917,3]
[366952924,1750599109480,-395.05846394,0.00021917,3]
[366952925,1750599110439,-3389.29,0.00021441,10]
[366952926,1750599110739,-702.6688978,0.00021918,7]
[366952927,1750599110771,-160.0,0.00021963,7]
[366952928,1750599110808,-3120.37,0.00022,7]
[366952929,1750599110840,-7790.24,0.00022,7]
[366952930,1750599110875,-251.15635302,0.00022123,10]
[366952931,1750599110905,-199.0,0.00022192,7]
[366952932,1750599110937,-251.15635302,0.00022332,11]
[366952933,1750599110982,-4808.56584572,0.00022417,7]
[366952934,1750599111012,-500.0,0.00022419,8]
[366952935,1750599111044,-500.0,0.00022419,8]
[366952936,1750599111077,-251.15635302,0.00022437,9]
[366952937,1750599111105,-500.0,0.00022457,8]
[366952938,1750599111140,-251.15635302,0.00022541,10]
[366952939,1750599111181,-4808.56584572,0.00022555,7]
[366952940,1750599111212,-251.15635302,0.00022646,11]
[366952941,1750599111249,-4808.56584572,0.00022693,7]
[366952942,1750599111280,-1140.99,0.000228,7]
[366952943,1750599111324,-4808.56584572,0.00022831,8]
[366952944,1750599111352,-251.15635302,0.00022855,11]
[366952945,1750599111389,-4808.56584572,0.00022969,8]
[366952946,1750599111418,-50000.0,0.00023,15]
[366952947,1750599111444,-160.0,0.00023,7]
[366952948,1750599111476,-500.0,0.00023005,9]
[366952949,1750599111503,-166.0,0.00023014,7]
[366952950,1750599111531,-199.0,0.00023014,7]
[366952951,1750599111562,-251.15635302,0.00023064,10]
[366952952,1750599111598,-4808.56584572,0.00023107,8]
[366952953,1750599111626,-251.15635302,0.00023168,11]
[366952954,1750599111653,-3120.37,0.000232,7]
[366952955,1750599111681,-7790.24,0.000232,7]
[366952956,1750599111719,-4808.56584572,0.00023245,8]
[366952957,1750599111753,-251.15635302,0.00023377,12]
[366952958,1750599111790,-4808.56584572,0.00023383,9]
[366952959,1750599111823,-251.15635302,0.00023482,11]
[366952960,1750599111848,-161.4436744,0.000235,7]
[366952961,1750599111885,-4808.56584572,0.00023521,9]
[366952962,1750599111912,-500.0,0.00023553,10]
[366952963,1750599111944,-251.15635302,0.00023586,8]
[366952964,1750599111982,-4808.56584572,0.00023659,9]
[366952965,1750599112009,-251.15635302,0.00023691,10]
[366952966,1750599112036,-251.15635302,0.00023795,9]
[366952967,1750599112079,-4808.56584572,0.00023797,9]
[366952968,1750599112120,-4808.56584572,0.00023934,10]
[366952969,1750599112148,-532687.59401504,0.0002394,7]
[366952970,1750599112177,-198578.96191058,0.0002394,7]
[366952971,1750599112210,-7328.75064314,0.00024,7]
[366952972,1750599112236,-178.16380635,0.00024,7]
[366952973,1750599112262,-2026.22,0.00024,8]
[366952974,1750599112287,-2000.0,0.00024,8]
[366952975,1750599112318,-115632.87431479,0.00024,60]
[366952976,1750599112902,179.22458523,0.00019389,2]
[366952977,1750599113493,-339.26094098,0.00020658,2]
[366952978,1750599113504,-212.05894571,0.00021438,2]
[366952979,1750599113516,-300.0,0.00021449,2]
[366952980,1750599113528,-306.36669001,0.0002145,2]
[366952981,1750599113539,-1112.2127446,0.0002145,2]
[366952982,1750599113554,-1112.2127446,0.0002145,2]
[366952983,1750599113583,-1112.2127446,0.0002145,2]
[366952984,1750599113602,-1112.2127446,0.0002145,2]
[366952985,1750599113627,-1112.2127446,0.0002145,2]
[366952986,1750599113651,-1112.2127446,0.0002145,2]
[366952987,1750599113674,-1112.2127446,0.0002145,2]
[366952988,1750599113699,-1112.2127446,0.0002145,2]
[366952989,1750599113721,-1112.2127446,0.0002145,2]
[366952990,1750599113738,-1112.2127446,0.0002145,2]
[366952991,1750599113755,-1112.2127446,0.0002145,2]
[366952992,1750599113776,-2456.26618257,0.00021817,2]
[366952993,1750599113798,-3544.21634731,0.00021817,2]
[366952994,1750599113826,-293.06294558,0.00021817,2]
[366952995,1750599113847,-1013.3,0.00021817,2]
[366952996,1750599115605,500.0,0.00016,30]
[366952997,1750599115786,500.0,0.00016,30]
[366952998,1750599115915,500.0,0.00016,30]
[366952999,1750599116145,500.0,0.00016,30]
[366953000,1750599116225,500.0,0.00016,30]
[366953001,1750599116321,501.46822173,0.00016,30]
[366953008,1750599303027,-200.0,0.00019624,2]
[366953009,1750599303182,301.24541103,0.00025,120]
[366953010,1750599306981,-165.666,0.00019624,2]
[366953011,1750599329033,163.63615277,0.00019035,2]
[366953012,1750599338637,6580.54366193,0.000222,69]
[366953013,1750599339050,-283.63460013,0.00019624,2]
[366953014,1750599343639,6580.54366192,0.000222,69]
[366953015,1750599348646,6580.54366192,0.000222,69]
[366953016,1750599349812,-170.46100001,0.00019624,2]
[366953017,1750599353640,6580.54366192,0.00022867,72]
[366953018,1750599361108,-200.1513353,0.00019624,2]
[366953019,1750599370024,-262.144,0.00019269,2]
[366954398,1750599477496,200.0,0.00022191,30]
[366954410,1750599477871,205.57338251,0.00022465,30]
[366954944,1750599500679,200.0,0.00024931,120]
[366956606,1750599643531,164.900241,0.0001899,2]
[366956607,1750599645257,-375.32,0.00019178,2]
[366956609,1750599650869,163.638968,0.00013699,2]
[366956611,1750599663122,3244.93836826,0.00019102,2]
[366956616,1750599783210,-99.9540129,0.00019178,2]
[366956617,1750599783241,-159.2524511,0.00019178,2]
[366956619,1750599893418,170.4513228,0.000189,2]
[366956620,1750600042093,-99.9540129,0.00019178,2]
[366956621,1750600042116,-374.4654468,0.00019269,2]
[366956622,1750600042138,-501.4016289,0.00019624,2]
[366956623,1750600045095,-917.3236118,0.00019624,2]
[366956624,1750600049267,-393.71426546,0.00019624,2]
[366956625,1750600049290,-1093.20095502,0.00019921,2]
[366956626,1750600049313,-500.0,0.00019968,2]
[366956627,1750600049335,-177.196,0.0002,2]
[366956628,1750600049357,-152.3768496,0.0002,2]
[366956629,1750600049382,-1200.0,0.00020018,2]
[366956630,1750600049407,-300.0,0.00020018,2]
[366956631,1750600049429,-300.0,0.00020018,2]
[366956632,1750600049454,-500.0,0.00020019,2]
[366956633,1750600049479,-182.08186079,0.00020019,2]
[366956634,1750600049508,-604.35882112,0.00020019,2]
[366956635,1750600049530,-276.34072066,0.00020019,2]
[366956636,1750600051101,637.464,0.00019032,2]
[366956637,1750600053097,-9825.25232269,0.00020019,2]
[366956638,1750600125774,-292.8698192,0.00019284,2]
[366956639,1750600132307,552.0762832,0.00019102,2]
[366956640,1750600141446,-168.0654835,0.00020967,3]
[366956641,1750600143864,-259.68609354,0.00019284,2]
[366956642,1750600153403,-113.44408726,0.00019284,2]
[366956643,1750600165365,-166.6284359,0.00019918,2]
[366956644,1750600165389,-37.79738491,0.00019918,2]
[366956656,1750600193848,-215.37604799,0.00020963,10]
[366956657,1750600201855,-285.2,0.00020967,3]
[366956658,1750600207267,-168.76597768,0.00019918,2]
[366956659,1750600209165,-36.463362,0.00019918,2]
[366956660,1750600209188,-131.536638,0.00020017,2]
[366956661,1750600215758,-168.463362,0.00020017,2]
[366956662,1750600215783,-44.48683161,0.00020017,2]
[366956663,1750600222155,-269.0902228,0.00019968,2]
[366956664,1750600226573,-154.0,0.00019968,2]
[366956665,1750600230582,-76.9097772,0.00019968,2]
[366956666,1750600230605,-221.41923926,0.00020017,2]
[366956667,1750600231885,919.55885472,0.00019121,2]
[366956668,1750600231911,866.55591274,0.00019121,2]
[366956669,1750600231932,901.6,0.00019121,2]
[366956670,1750600231956,904.94340294,0.00019121,2]
[366956673,1750600231978,953.74567316,0.00019121,2]
[366956676,1750600231999,942.1856799,0.00019121,2]
[366956678,1750600232022,980.0,0.00019121,2]
[366956730,1750600232936,-190.84605584,0.00019121,2]
[366956740,1750600233020,-4022.0,0.00019121,2]
[366956742,1750600233031,-1161.1420984,0.00019121,2]
[366956744,1750600233043,-10058.0,0.00019121,2]
[366956862,1750600237172,-182.4150196,0.00019121,2]
[366956893,1750600238570,-1526.68947299,0.00019121,2]
[366956895,1750600238917,-111.69470252,0.00019121,2]
[366956896,1750600238933,-528.78757581,0.00019121,2]
[366956897,1750600238944,-340.47030623,0.00019121,2]
[366956903,1750600239003,-309.36524515,0.00019121,2]
[366956905,1750600239013,-34.09392913,0.00020017,2]
[366956907,1750600239023,-300.0,0.00020017,2]
[366956909,1750600239032,-3658.46000362,0.00020018,2]
[366956931,1750600240820,-1942.94999638,0.00020018,2]
[366956932,1750600240830,-1080.33653757,0.00020018,2]
[366956934,1750600240846,-119.66346243,0.00020018,2]
[366956935,1750600240856,-800.0,0.000201,2]
[366956936,1750600240866,-229.26447486,0.00020343,2]
[366956937,1750600240875,-207.4,0.0002048,2]
[366956938,1750600240884,-1688.0,0.0002048,2]
[366956939,1750600240894,-1093.20095497,0.00020489,2]
[366956940,1750600240909,-1000.0,0.00020509,2]
[366956941,1750600240919,-1000.0,0.00020509,2]
[366956942,1750600240929,-1750.456,0.00020535,2]
[366956943,1750600240938,-1815.222872,0.0002059,2]
[366956944,1750600240947,-1882.38611826,0.00020645,2]
[366956945,1750600240957,-1952.03440464,0.000207,2]
[366956946,1750600240968,-1182.14624668,0.00020755,2]
[366956947,1750600240978,-414.94875046,0.00020767,2]
[366956948,1750600240987,-2643.3,0.00020963,10]
[366956949,1750600240997,-351.7045165,0.00020967,3]
[366956950,1750600241007,-402.49,0.00020967,3]
[366956951,1750600241017,-201.24,0.00020967,3]
[366956952,1750600241026,-603.75,0.00020967,3]
[366956953,1750600241035,-190.74255872,0.00020972,2]
[366956954,1750600241045,-277.0491767,0.00020972,2]
[366956955,1750600241054,-1021.72797954,0.00020972,2]
[366956956,1750600241065,-1021.72797954,0.00020972,2]
[366956957,1750600241074,-1021.72797954,0.00020972,2]
[366956958,1750600241084,-1021.72797954,0.00020972,2]
[366956959,1750600241093,-1021.72797954,0.00020972,2]
[366956960,1750600241102,-1021.72797954,0.00020972,2]
[366956961,1750600241112,-500.0,0.00020972,2]
[366956962,1750600241121,-1021.72797954,0.00020972,2]
[366956963,1750600241131,-1021.72797954,0.00020972,2]
[366956964,1750600241140,-1021.72797954,0.00020972,2]
[366956965,1750600241152,-668.33244792,0.00020972,2]
[366956966,1750600241657,-353.39553162,0.00020972,2]
[366956967,1750600241670,-1021.72797954,0.00020972,2]
[366956968,1750600241680,-1021.72797954,0.00020972,2]
[366956969,1750600241690,-151.0,0.00020977,2]
[366956970,1750600241699,-153.42673917,0.00020977,2]
[366956971,1750600241709,-500.0,0.00020977,2]
[366956972,1750600241718,-221.79211539,0.00020977,2]
[366956973,1750600241760,-257.93901646,0.00020977,2]
[366956987,1750600244472,-20.26886815,0.00020977,2]
[366956988,1750600244482,-500.0,0.00020977,2]
[366956989,1750600244493,-300.0,0.00020977,2]
[366956990,1750600244503,-165.15320244,0.00020977,2]
[366956991,1750600244513,-500.0,0.00020977,2]
[366956992,1750600244522,-300.0,0.00020977,2]
[366956993,1750600244532,-500.0,0.00020977,2]
[366956994,1750600244542,-300.0,0.00020977,2]
[366956995,1750600244551,-500.0,0.00020977,2]
[366956996,1750600244561,-300.0,0.00020977,2]
[366956997,1750600244570,-500.0,0.00020977,2]
[366956998,1750600244580,-300.0,0.00020977,2]
[366956999,1750600244590,-500.0,0.00020977,2]
[366957000,1750600244600,-300.0,0.00020977,2]
[366957001,1750600244610,-500.0,0.00020977,2]
[366957002,1750600244619,-300.0,0.00020977,2]
[366957003,1750600244628,-500.0,0.00020977,2]
[366957004,1750600244638,-300.0,0.00020977,2]
[366957005,1750600244647,-500.0,0.00020977,2]
[366957006,1750600244660,-300.0,0.00020977,2]
[366957007,1750600244670,-500.0,0.00020977,2]
[366957008,1750600244679,-300.0,0.00020977,2]
[366957009,1750600244690,-500.0,0.00020977,2]
[366957010,1750600244700,-300.0,0.00020977,2]
[366957011,1750600244709,-500.0,0.00020977,2]
[366957012,1750600244718,-300.0,0.00020977,2]
[366957013,1750600244728,-500.0,0.00020977,2]
[366957014,1750600244737,-5000.0,0.00020977,2]
[366957015,1750600244747,-300.0,0.00020977,2]
[366957016,1750600244757,-300.0,0.00020977,2]
[366957017,1750600244767,-300.0,0.00020977,2]
[366957018,1750600244776,-500.0,0.00020977,2]
[366957019,1750600244787,-500.0,0.00020977,2]
[366957020,1750600244797,-23997.36436691,0.00020977,2]
[366957021,1750600244810,-1002.63563309,0.00020977,2]
[366957022,1750600244820,-5019.96787878,0.00020977,2]
[366957023,1750600244830,-300.0,0.00020977,2]
[366957024,1750600244841,-500.0,0.00020988,2]
[366957025,1750600244851,-500.0,0.00020989,7]
[366957026,1750600244861,-100000.0,0.0002099,2]
[366957027,1750600244871,-160.0,0.00021,2]
[366957028,1750600244881,-429.395,0.0002104,2]
[366957029,1750600244891,-36.05000348,0.00021058,2]
[366957030,1750600244907,-1057.15095149,0.00021058,2]
[366957031,1750600244918,-500.0,0.00021064,2]
[366957032,1750600244928,-800.0,0.000211,3]
[366957033,1750600244938,-451.1307767,0.00021117,2]
[366957034,1750600244948,-365.8215413,0.00021117,2]
[366957035,1750600244957,-365.8215413,0.00021117,2]
[366957036,1750600244966,-229.4776364,0.00021117,2]
[366957037,1750600244976,-3658.0,0.00021222,2]
[366957038,1750600244988,-500.0,0.00021262,2]
[366957039,1750600244998,-13210.74899081,0.00021337,2]
[366957040,1750600245008,-1000.0,0.00021399,2]
[366957041,1750600245018,-5700.85363275,0.000214,5]
[366957042,1750600245028,-5700.85363258,0.000214,5]
[366957043,1750600245038,-5700.85363258,0.000214,5]
[366957044,1750600245048,-5700.85363258,0.000214,5]
[366957045,1750600245058,-163.638968,0.00021404,2]
[366957046,1750600245069,-160.0,0.00021416,2]
[366957047,1750600245078,-160.0,0.0002142,2]
[366957048,1750600245088,-5739.85331431,0.00021436,2]
[366957049,1750600245098,-160.0,0.00021437,2]
[366957050,1750600245108,-160.0,0.00021437,2]
[366957051,1750600245118,-213.59462818,0.00021437,2]
[366957052,1750600245128,-160.0,0.00021437,2]
[366957053,1750600245138,-160.0,0.00021437,2]
[366957054,1750600245149,-12551.52821599,0.00021437,2]
[366957055,1750600245163,-230.14598372,0.00021437,2]
[366957056,1750600245174,-836.56272071,0.00021437,2]
[366957057,1750600245184,-160.0,0.00021437,2]
[366957058,1750600245194,-160.0,0.00021437,2]
[366957059,1750600245204,-425.01221603,0.00021437,2]
[366957060,1750600245214,-160.0,0.00021437,2]
[366957061,1750600245224,-846.39664074,0.00021437,2]
[366957062,1750600245234,-185.11,0.0002145,2]
[366957063,1750600245245,-1000.0,0.00021451,2]
[366957064,1750600245254,-5700.85363258,0.00021452,5]
[366957065,1750600245264,-306.0,0.00021452,2]
[366957066,1750600245274,-1000.0,0.00021457,2]
[366957067,1750600245284,-1411.451884,0.00021478,4]
[366957068,1750600245295,-151.66540298,0.00021525,2]
[366957069,1750600245305,-401.8316353,0.00021525,2]
[366957070,1750600245317,-2470.8267891,0.00021525,2]
[366957071,1750600245412,-2127.3415756,0.00021525,2]
[366957072,1750600245422,-25000.0,0.00021525,2]
[366957073,1750600245432,-5739.8533143,0.00021531,2]
[366957074,1750600245442,-500.0,0.00021536,2]
[366957075,1750600245451,-500.0,0.00021537,8]
[366957076,1750600245461,-307.0,0.00021556,2]
[366957077,1750600245471,-13210.74899081,0.00021577,2]
[366957078,1750600245481,-1000.0,0.00021589,2]
[366957079,1750600245491,-5700.85363258,0.0002159,5]
[366957080,1750600245501,-1093.20095497,0.00021626,2]
[366957081,1750600245510,-5739.8533143,0.00021627,2]
[366957082,1750600245520,-392.0,0.00021643,2]
[366957083,1750600245530,-5739.8533143,0.00021722,2]
[366957084,1750600245539,-5700.85363258,0.00021728,5]
[366957085,1750600245549,-392.0,0.00021745,2]
[366957086,1750600245559,-420.0,0.00021796,2]
[366957087,1750600245569,-420.0,0.00021796,2]
[366957088,1750600245578,-420.0,0.00021797,2]
[366957089,1750600245587,-244.81204881,0.0002181,12]
[366957090,1750600245597,-1000.0,0.00021816,2]
[366957091,1750600245607,-200.0,0.00021817,10]
[366957092,1750600245617,-200.0,0.00021817,10]
[366957093,1750600245627,-200.0,0.00021817,10]
[366957094,1750600245636,-200.0,0.00021817,10]
[366957095,1750600245646,-200.0,0.00021817,10]
[366957096,1750600245658,-200.0,0.00021817,10]
[366957097,1750600245668,-200.0,0.00021817,10]
[366957098,1750600245678,-200.0,0.00021817,10]
[366957099,1750600245687,-200.0,0.00021817,10]
[366957100,1750600245698,-200.0,0.00021817,10]
[366957101,1750600245709,-200.0,0.00021817,10]
[366957102,1750600245719,-200.0,0.00021817,10]
[366957103,1750600245729,-200.0,0.00021817,10]
[366957104,1750600245740,-200.0,0.00021817,10]
[366957105,1750600245751,-200.0,0.00021817,10]
[366957106,1750600245763,-200.0,0.00021817,10]
[366957107,1750600245774,-200.0,0.00021817,10]
[366957108,1750600245783,-200.0,0.00021817,10]
[366957109,1750600245793,-200.0,0.00021817,10]
[366957110,1750600245802,-200.0,0.00021817,10]
[366957111,1750600245813,-200.0,0.00021817,10]
[366957112,1750600245822,-200.0,0.00021817,10]
[366957113,1750600245832,-200.0,0.00021817,10]
[366957114,1750600245842,-200.0,0.00021817,10]
[366957115,1750600245852,-223.899499,0.00021817,10]
[366957116,1750600245861,-5739.8533143,0.00021817,2]
[366957117,1750600245871,-215.0738,0.00021849,2]
[366957118,1750600245880,-5700.85363258,0.00021866,6]
[366957119,1750600245890,-244.81204881,0.00021873,2]
[366957120,1750600245901,-151.0,0.000219,3]
[366957121,1750600245915,-6313.15,0.000219,2]
[366957122,1750600245925,-846.39664074,0.000219,10]
[366957123,1750600245935,-12551.52821599,0.000219,10]
[366957124,1750600245944,-213.59462818,0.000219,10]
[366957125,1750600245954,-524.02598587,0.000219,10]
[366957127,1750600245964,-1680.0,0.00021902,2]
[366957129,1750600245973,-1000.0,0.00021916,2]
[366957130,1750600245983,-1000.0,0.00021916,2]
[366957132,1750600245994,-1000.0,0.00021916,2]
[366957134,1750600246003,-1000.0,0.00021916,2]
[366957136,1750600246013,-1000.0,0.00021916,2]
[366957138,1750600246023,-1000.0,0.00021916,2]
[366957140,1750600246033,-636.48944067,0.00021916,2]
[366957142,1750600246044,-14481.70217051,0.00021917,2]
[366957144,1750600246053,-22963.68799834,0.00021917,2]
[366957146,1750600246063,-151.0,0.00021917,2]
[366957147,1750600246073,-151.0,0.00021917,2]
[366957148,1750600246083,-260.727857,0.00021917,2]
[366957149,1750600246093,-430.0,0.00021917,3]
[366957151,1750600246104,-449.633552,0.00021917,2]
[366957152,1750600246114,-449.633552,0.00021917,2]
[366957153,1750600246124,-449.633552,0.00021917,2]
[366957154,1750600246134,-449.633552,0.00021917,2]
[366957155,1750600246144,-449.633552,0.00021917,2]
[366957156,1750600246157,-449.633552,0.00021917,2]
[366957157,1750600246169,-449.633552,0.00021917,2]
[366957158,1750600246178,-449.633552,0.00021917,2]
[366957160,1750600246189,-449.633552,0.00021917,2]
[366957162,1750600246199,-449.63356,0.00021917,2]
[366957164,1750600246209,-154.193507,0.00021917,2]
[366957165,1750600246218,-460.0,0.00021917,3]
[366957166,1750600246228,-460.0,0.00021917,3]
[366957168,1750600246239,-151.0,0.00021917,2]
[366957169,1750600246250,-310.0,0.00021917,3]
[366957172,1750600246260,-203.376092,0.00021917,2]
[366957173,1750600246270,-460.0,0.00021917,3]
[366957175,1750600246281,-460.0,0.00021917,3]
[366957177,1750600246291,-460.0,0.00021917,3]
[366957178,1750600246300,-460.0,0.00021917,3]
[366957184,1750600246440,-460.0,0.00021917,3]
[366957185,1750600246474,-460.0,0.00021917,3]
[366957186,1750600246486,-460.0,0.00021917,3]
[366957187,1750600246496,-460.0,0.00021917,3]
[366957188,1750600246507,-460.0,0.00021917,3]
[366957189,1750600246516,-460.0,0.00021917,3]
[366957190,1750600246527,-460.0,0.00021917,3]
[366957191,1750600246537,-460.0,0.00021917,3]
[366957192,1750600246546,-460.0,0.00021917,3]
[366957193,1750600246555,-460.0,0.00021917,3]
[366957194,1750600246566,-460.0,0.00021917,3]
[366957195,1750600246576,-460.0,0.00021917,3]
[366957196,1750600246585,-460.0,0.00021917,3]
[366957197,1750600246595,-403.62210622,0.00021917,3]
[366957198,1750600246605,-460.0,0.00021917,3]
[366957200,1750600246615,-460.0,0.00021917,3]
[366957202,1750600246625,-460.0,0.00021917,3]
[366957203,1750600246635,-460.0,0.00021917,3]
[366957204,1750600246645,-460.0,0.00021917,3]
[366957205,1750600246658,-460.0,0.00021917,3]
[366957206,1750600246668,-460.0,0.00021917,3]
[366957207,1750600246678,-460.0,0.00021917,3]
[366957208,1750600246687,-460.0,0.00021917,3]
[366957209,1750600246697,-460.0,0.00021917,3]
[366957210,1750600246708,-460.0,0.00021917,3]
[366957211,1750600246717,-460.0,0.00021917,3]
[366957212,1750600246727,-460.0,0.00021917,3]
[366957213,1750600246737,-413.61036806,0.00021917,3]
[366957214,1750600246747,-460.0,0.00021917,3]
[366957215,1750600246757,-460.0,0.00021917,3]
[366957216,1750600246767,-460.0,0.00021917,3]
[366957217,1750600246777,-460.0,0.00021917,3]
[366957218,1750600246786,-306.29639438,0.00021917,3]
[366957219,1750600246796,-151.0,0.00021917,2]
[366957220,1750600246805,-152.522377,0.00021917,2]
[366957221,1750600246815,-460.0,0.00021917,3]
[366957222,1750600246825,-460.0,0.00021917,3]